[Event "European School-ch 2019"]
[Site "Mamaia"]
[Date "2019.06.05"]
[Round "6.35"]
[White "Taragan, Uri"]
[Black "Danila, Tudor-Gabriel"]
[Result "0-1"]
[ECO "A45"]
[WhiteElo "1164"]
[BlackElo "1336"]
[Annotator "NA RC"]
[PlyCount "118"]
[EventDate "2019.05.31"]
[EventType "swiss"]
[EventCountry "ROU"]
[SourceTitle "playchess.com"]
[Source "ChessBase"]
[SourceQuality "1"]
[TimeControl "40/5400+30:1800+30"]

1. d4 {[%emt 0:00:00]} Nf6 {[%emt 0:00:00]} 2. Nc3 {[%emt 0:00:05]} d5 {[%emt 0:00:00]} 3. Bf4 {[%emt 0:00:56]} g6 {[%emt 0:00:00]} 4. Nb5 {[%emt 0:01:23]} Na6 {[%emt 0:00:00]} 5. e3 {[%emt 0:01:53]} Bg7 {[%emt 0:00:41]} 6. Nf3 {[%emt 0:13:15]} O-O {[%emt 0:01:45]} 7. c4 {[%emt 0:02:52]} c6 {[%emt 0:11:07]} 8. Nc3 {[%emt 0:05:03]} Nc7 {[%emt 0:00:12]} 9. Qb3 {[%emt 0:04:58]} dxc4 {[%emt 0:04:38]} 10. Bxc7 {[%emt 0:12:30]} Qxc7 {[%emt 0:00:07]} 11. Bxc4 {[%emt 0:00:49]} Nd7 {[%emt 0:03:51]} 12. Ng5 {[%emt 0:06:19]} e6 {[%emt 0:03:20]} 13. Bxe6 {[%emt 0:02:09]} fxe6 {[%emt 0:00:20]} 14. Nxe6 {[%emt 0:00:44]} Qb6 {[%emt 0:00:06]} 15. Nxf8+ {[%emt 0:02:52]} Kxf8 {[%emt 0:00:55]} 16. Qxb6 {[%emt 0:19:21]} Nxb6 {[%emt 0:01:48]} 17. b3 {[%emt 0:01:44]} Be6 {[%emt 0:00:49]} 18. O-O {[%emt 0:03:14]} a5 {[%emt 0:01:07]} 19. Ne4 {[%emt 0:07:18]} Bd5 {[%emt 0:01:52]} 20. Nc5 {[%emt 0:01:27]} Ra7 {[%emt 0:00:37]} 21. Rfb1 {[%emt 0:02:14]} Ke7 {[%emt 0:00:39]} 22. b4 {[%emt 0:02:18]} Nc4 {[%emt 0:01:28]} 23. b5 {[%emt 0:02:30]} b6 {[%emt 0:04:42]} 24. Na4 {[%emt 0:01:16]} c5 {[%emt 0:04:09]} 25. Nc3 {[%emt 0:03:20]} Bg8 {[%emt 0:00:41]} 26. Rd1 {[%emt 0:00:49]} Rd7 {[%emt 0:00:09]} 27. Ne2 {[%emt 0:00:35]} Na3 {[%emt 0:13:14]} 28. Rac1 {[%emt 0:00:53]} Nxb5 {[%emt 0:00:23]} 29. dxc5 {[%emt 0:00:34]} Rxd1+ {[%emt 0:00:15]} 30. Rxd1 {[%emt 0:00:03]} bxc5 {[%emt 0:00:07]} 31. Rb1 {[%emt 0:01:10]} Bc4 {[%emt 0:01:11]} 32. Nf4 {[%emt 0:00:41]} g5 {[%emt 0:00:56]} 33. Nd5+ {[%emt 0:00:37]} Ke6 {[%emt 0:01:16]} 34. Nb6 {[%emt 0:00:26]} Nc3 {[%emt 0:00:47]} 35. Re1 {[%emt 0:00:37]} Bxa2 {[%emt 0:01:04]} 36. h3 {[%emt 0:00:30]} Kd6 {[%emt 0:00:53]} 37. Nc8+ {[%emt 0:00:27]} Kd7 {[%emt 0:00:14]} 38. Nb6+ {[%emt 0:00:08]} Kc7 {[%emt 0:00:05]} 39. Na8+ {[%emt 0:00:57]} Kb7 {[%emt 0:00:10]} 40. Kh2 {[%emt 0:00:00]} Kxa8 {[%emt 0:00:00]} 41. Kg3 {[%emt 0:00:28]} Be5+ {[%emt 0:01:10]} 42. Kg4 {[%emt 0:00:22]} Bf6 {[%emt 0:01:17]} 43. Kf5 {[%emt 0:00:35]} Be7 {[%emt 0:00:27]} 44. Rc1 {[%emt 0:00:22]} Nd5 {[%emt 0:00:21]} 45. e4 {[%emt 0:00:40]} Nc7 {[%emt 0:00:32]} 46. Ra1 {[%emt 0:00:32]} Be6+ {[%emt 0:00:35]} 47. Ke5 {[%emt 0:00:20]} Kb7 {[%emt 0:00:22]} 48. Rxa5 {[%emt 0:00:27]} Kb6 {[%emt 0:01:41]} 49. Ra1 {[%emt 0:00:26]} Kc6 {[%emt 0:01:11]} 50. Ra7 {[%emt 0:00:40]} c4 {[%emt 0:00:42]} 51. Ra1 {[%emt 0:00:51]} Bb4 {[%emt 0:02:58]} 52. Rc1 {[%emt 0:00:51]} Ba3 {[%emt 0:00:25]} 53. Rc2 {[%emt 0:00:13]} Kc5 {[%emt 0:01:26]} 54. g3 {[%emt 0:00:24]} Kb4 {[%emt 0:00:26]} 55. Kd4 {[%emt 0:00:23]} c3 {[%emt 0:00:45]} 56. f4 {[%emt 0:00:29]} Bb3 {[%emt 0:01:04]} 57. Rg2 {[%emt 0:00:43]} c2 {[%emt 0:00:28]} 58. Rxc2 {[%emt 0:00:15]} Bxc2 {[%emt 0:00:05]} 59. e5 {[%emt 0:00:12]} gxf4 {[%emt 0:00:21] Ke4} 0-1

[Event "European School-ch 2019"]
[Site "Mamaia"]
[Date "2019.06.05"]
[Round "6.36"]
[White "Babayev, Yusif"]
[Black "Mirzoyan, Davit T."]
[Result "0-1"]
[ECO "B22"]
[WhiteElo "1230"]
[BlackElo "2388"]
[Annotator "RC"]
[PlyCount "96"]
[EventDate "2019.05.31"]
[EventType "swiss"]
[EventCountry "ROU"]
[SourceTitle "playchess.com"]
[Source "ChessBase"]
[SourceQuality "1"]
[TimeControl "40/5400+30:1800+30"]

1. e4 {[%emt 0:00:00]} c5 {[%emt 0:00:00]} 2. c3 {[%emt 0:00:00]} e6 {[%emt 0:00:21]} 3. d4 {[%emt 0:00:07]} cxd4 {[%emt 0:00:11]} 4. cxd4 {[%emt 0:00:05]} a6 {[%emt 0:00:17]} 5. Nc3 {[%emt 0:00:47]} b5 {[%emt 0:00:14]} 6. a3 {[%emt 0:01:15]} Bb7 {[%emt 0:00:10]} 7. Bd3 {[%emt 0:00:46]} d6 {[%emt 0:04:20]} 8. Nf3 {[%emt 0:00:41]} Be7 {[%emt 0:03:28]} 9. Bd2 {[%emt 0:00:54]} Nf6 {[%emt 0:01:24]} 10. O-O {[%emt 0:00:31]} O-O {[%emt 0:03:32]} 11. e5 {[%emt 0:08:10]} dxe5 {[%emt 0:01:46]} 12. Nxe5 {[%emt 0:00:29]} Qxd4 {[%emt 0:02:01]} 13. Qe2 {[%emt 0:00:58]} Nbd7 {[%emt 0:01:47]} 14. Nf3 {[%emt 0:01:52]} Bxf3 {[%emt 0:00:17]} 15. gxf3 {[%emt 0:02:02]} Ne5 {[%emt 0:01:58]} 16. Bc2 {[%emt 0:03:28]} Qxd2 {[%emt 0:01:41]} 17. Qxd2 {[%emt 0:01:03]} Nxf3+ {[%emt 0:02:29]} 18. Kh1 {[%emt 0:01:23]} Nxd2 {[%emt 0:00:27]} 19. Rfd1 {[%emt 0:02:10]} Nc4 {[%emt 0:00:50]} 20. b3 {[%emt 0:01:22]} Nb6 {[%emt 0:02:08]} 21. Rg1 {[%emt 0:04:13]} Nbd5 {[%emt 0:03:28]} 22. Ne2 {[%emt 0:01:48]} Rac8 {[%emt 0:00:34]} 23. Bd3 {[%emt 0:04:08]} Bc5 {[%emt 0:01:51]} 24. Rgf1 {[%emt 0:00:43]} Ng4 {[%emt 0:01:37]} 25. Kg1 {[%emt 0:02:19]} Nxf2 {[%emt 0:02:04]} 26. Rxf2 {[%emt 0:00:34]} Nc3 {[%emt 0:01:02]} 27. Kf1 {[%emt 0:01:32]} Bxf2 {[%emt 0:00:12]} 28. Kxf2 {[%emt 0:00:10]} Nxe2 {[%emt 0:01:12]} 29. Kxe2 {[%emt 0:00:11]} Rfd8 {[%emt 0:01:18]} 30. Rd1 {[%emt 0:01:29]} Kf8 {[%emt 0:02:53]} 31. a4 {[%emt 0:03:46]} bxa4 {[%emt 0:01:58]} 32. bxa4 {[%emt 0:00:26]} Rb8 {[%emt 0:04:20]} 33. Bxa6 {[%emt 0:02:18]} Rb2+ {[%emt 0:00:35]} 34. Ke1 {[%emt 0:00:25]} Rxd1+ {[%emt 0:00:29]} 35. Kxd1 {[%emt 0:00:10]} Ke7 {[%emt 0:00:25]} 36. h3 {[%emt 0:03:14]} Kd6 {[%emt 0:00:48]} 37. Bd3 {[%emt 0:01:58]} Kd5 {[%emt 0:00:17]} 38. a5 {[%emt 0:01:53]} Kd4 {[%emt 0:01:02]} 39. Bc2 {[%emt 0:02:33]} f5 {[%emt 0:01:02]} 40. Kc1 {[%emt 0:00:00]} Kc3 {[%emt 0:00:00]} 41. Bb1 {[%emt 0:06:44]} f4 {[%emt 0:03:17]} 42. a6 {[%emt 0:00:19]} f3 {[%emt 0:00:17]} 43. Be4 {[%emt 0:00:39]} f2 {[%emt 0:01:35]} 44. Bg2 {[%emt 0:03:07]} Ra2 {[%emt 0:00:22]} 45. Kd1 {[%emt 0:01:52]} Kd3 {[%emt 0:01:19]} 46. Bf1+ {[%emt 0:00:17]} Ke3 {[%emt 0:00:15]} 47. Bb5 {[%emt 0:01:31]} Rb2 {[%emt 0:01:09]} 48. Bc4 {[%emt 0:06:01]} Rb4 0-1

[Event "European School-ch 2019"]
[Site "Mamaia"]
[Date "2019.06.05"]
[Round "6.41"]
[White "Korolchuk, Vladyslava"]
[Black "Mgeladze, Kesaria"]
[Result "1/2-1/2"]
[ECO "A26"]
[WhiteElo "1032"]
[BlackElo "1322"]
[Annotator "NA RC"]
[PlyCount "96"]
[EventDate "2019.05.31"]
[EventType "swiss"]
[EventCountry "ROU"]
[SourceTitle "playchess.com"]
[Source "ChessBase"]
[SourceQuality "1"]
[TimeControl "40/5400+30:1800+30"]

1. c4 {[%emt 0:00:00]} g6 {[%emt 0:00:00]} 2. Nc3 {[%emt 0:00:00]} Bg7 {[%emt 0:00:00]} 3. g3 {[%emt 0:00:00]} d6 {[%emt 0:00:00]} 4. Bg2 {[%emt 0:00:06]} e5 {[%emt 0:00:06]} 5. d3 {[%emt 0:00:33]} Nc6 {[%emt 0:00:23]} 6. Bd2 {[%emt 0:00:37]} a5 {[%emt 0:00:53]} 7. a4 {[%emt 0:01:28]} f5 {[%emt 0:00:31]} 8. Rb1 {[%emt 0:01:32]} Nf6 {[%emt 0:00:19]} 9. Nf3 {[%emt 0:01:15]} O-O {[%emt 0:00:18]} 10. O-O {[%emt 0:03:58]} h6 {[%emt 0:00:40]} 11. Qc1 {[%emt 0:02:07]} Kh7 {[%emt 0:00:19]} 12. b3 {[%emt 0:06:42]} Be6 {[%emt 0:03:07]} 13. Rd1 {[%emt 0:05:36]} d5 {[%emt 0:04:21]} 14. cxd5 {[%emt 0:01:30]} Nxd5 {[%emt 0:00:24]} 15. Rf1 {[%emt 0:09:08]} Ncb4 {[%emt 0:07:09]} 16. Nxd5 {[%emt 0:03:10]} Nxd5 {[%emt 0:00:27]} 17. Qd1 {[%emt 0:04:29]} g5 {[%emt 0:03:02]} 18. e3 {[%emt 0:05:20]} f4 {[%emt 0:11:20]} 19. e4 {[%emt 0:02:27]} Ne7 {[%emt 0:02:22]} 20. h3 {[%emt 0:04:11]} Qxd3 {[%emt 0:02:32]} 21. Ne1 {[%emt 0:02:19]} Qd7 {[%emt 0:01:00]} 22. Kh2 {[%emt 0:02:01]} Rad8 {[%emt 0:01:13]} 23. Rb2 {[%emt 0:02:06]} Qd4 {[%emt 0:02:49]} 24. Ra2 {[%emt 0:02:13]} fxg3+ {[%emt 0:04:08]} 25. fxg3 {[%emt 0:01:44]} Rxf1 {[%emt 0:02:11]} 26. Bxf1 {[%emt 0:00:38]} Qxe4 {[%emt 0:01:20]} 27. Bg2 {[%emt 0:03:29]} Qd4 {[%emt 0:04:21]} 28. Qc2+ {[%emt 0:04:02]} Ng6 {[%emt 0:32:45]} 29. Bxa5 {[%emt 0:05:20]} b6 {[%emt 0:01:26]} 30. Bc3 {[%emt 0:01:13]} Qd7 {[%emt 0:01:27]} 31. Be4 {[%emt 0:02:44]} Bf7 {[%emt 0:01:46]} 32. Nd3 {[%emt 0:01:26]} Qe6 {[%emt 0:01:37]} 33. Rb2 {[%emt 0:01:15]} Kh8 {[%emt 0:01:03]} 34. a5 {[%emt 0:03:15]} Qc8 {[%emt 0:05:39]} 35. Qf2 {[%emt 0:02:13]} Rf8 {[%emt 0:01:27]} 36. axb6 {[%emt 0:02:31]} cxb6 {[%emt 0:00:12]} 37. Bb4 {[%emt 0:01:57]} Bd5 {[%emt 0:02:04]} 38. Bxf8 {[%emt 0:00:27]} Bxe4 {[%emt 0:00:17]} 39. Bxg7+ {[%emt 0:00:56]} Kxg7 {[%emt 0:00:07]} 40. Nxe5 {[%emt 0:00:00]} Nxe5 {[%emt 0:00:00]} 41. Qd4 {[%emt 0:02:45]} Qf5 {[%emt 0:09:20]} 42. Rf2 {[%emt 0:01:54]} Bf3 {[%emt 0:01:49]} 43. Rxf3 {[%emt 0:04:10]} Qxf3 {[%emt 0:00:23]} 44. Qxe5+ {[%emt 0:00:22]} Kg8 {[%emt 0:01:19]} 45. Qe8+ {[%emt 0:00:57]} Kg7 {[%emt 0:00:06]} 46. Qe7+ {[%emt 0:00:35]} Kg8 {[%emt 0:00:04]} 47. Qd8+ {[%emt 0:00:44]} Kg7 {[%emt 0:00:09]} 48. Qe7+ {[%emt 0:00:34]} Kg8 {[%emt 0:00:15]} 1/2-1/2

[Event "European School-ch 2019"]
[Site "Mamaia"]
[Date "2019.06.05"]
[Round "6.42"]
[White "Ismayilova, Khanim"]
[Black "State-Ungureanu, Elena-Anastasia"]
[Result "1-0"]
[ECO "D00"]
[WhiteElo "1225"]
[BlackElo "1057"]
[Annotator "NA RC"]
[PlyCount "37"]
[EventDate "2019.05.31"]
[EventType "swiss"]
[EventCountry "ROU"]
[SourceTitle "playchess.com"]
[Source "ChessBase"]
[SourceQuality "1"]
[TimeControl "40/5400+30:1800+30"]

1. d4 {[%emt 0:00:00]} d5 {[%emt 0:00:00]} 2. Bf4 {[%emt 0:00:00]} e6 {[%emt 0:00:00]} 3. Nf3 {[%emt 0:00:00]} Nf6 {[%emt 0:00:06]} 4. e3 {[%emt 0:00:20]} Be7 {[%emt 0:00:07]} 5. Bd3 {[%emt 0:00:18]} O-O {[%emt 0:00:08]} 6. Nbd2 {[%emt 0:00:32]} b6 {[%emt 0:00:16]} 7. Ne5 {[%emt 0:00:17]} c5 {[%emt 0:00:31]} 8. c3 {[%emt 0:00:15]} Nbd7 {[%emt 0:00:09]} 9. Ndf3 {[%emt 0:05:48]} Bb7 {[%emt 0:04:29]} 10. g4 {[%emt 0:01:24]} Bd6 {[%emt 0:13:34]} 11. Nxf7 {[%emt 0:01:51]} Rxf7 {[%emt 0:00:25]} 12. Bxd6 {[%emt 0:00:07]} Nxg4 {[%emt 0:00:23]} 13. h3 {[%emt 0:02:21]} Ngf6 {[%emt 0:02:56]} 14. Ng5 {[%emt 0:00:43]} Re7 {[%emt 0:21:07]} 15. Bxe7 {[%emt 0:01:48]} Qxe7 {[%emt 0:00:07]} 16. Qc2 {[%emt 0:00:47]} c4 {[%emt 0:01:49]} 17. Bxh7+ {[%emt 0:01:39]} Nxh7 {[%emt 0:00:43]} 18. Qxh7+ {[%emt 0:02:50]} Kf8 {[%emt 0:09:28]} 19. Qh8# {[%emt 0:00:07] Ke8} 1-0

[Event "European School-ch 2019"]
[Site "Mamaia"]
[Date "2019.06.05"]
[Round "6.43"]
[White "Voronaya, Eva"]
[Black "Zarkua, Anastasia"]
[Result "1/2-1/2"]
[ECO "A84"]
[WhiteElo "1005"]
[BlackElo "1108"]
[Annotator "NA RC"]
[PlyCount "117"]
[EventDate "2019.05.31"]
[EventType "swiss"]
[EventCountry "ROU"]
[SourceTitle "playchess.com"]
[Source "ChessBase"]
[SourceQuality "1"]
[TimeControl "40/5400+30:1800+30"]

1. d4 {[%emt 0:00:00]} f5 {[%emt 0:00:00]} 2. c4 {[%emt 0:00:00]} g6 {[%emt 0:00:06]} 3. Nc3 {[%emt 0:00:40]} Nf6 {[%emt 0:00:46]} 4. Nf3 {[%emt 0:00:46]} Bg7 {[%emt 0:00:29]} 5. b4 {[%emt 0:00:12]} O-O {[%emt 0:00:32]} 6. Bb2 {[%emt 0:01:32]} d6 {[%emt 0:00:47]} 7. e3 {[%emt 0:01:47]} c6 {[%emt 0:01:15]} 8. Be2 {[%emt 0:01:01]} Qe8 {[%emt 0:01:25]} 9. O-O {[%emt 0:02:56]} Nbd7 {[%emt 0:02:32]} 10. Ng5 {[%emt 0:01:17]} e5 {[%emt 0:02:56]} 11. dxe5 {[%emt 0:02:44]} dxe5 {[%emt 0:01:20]} 12. c5 {[%emt 0:01:45]} h6 {[%emt 0:02:55]} 13. Bc4+ {[%emt 0:00:33]} Kh8 {[%emt 0:00:21]} 14. Ne6 {[%emt 0:00:56]} Rb8 {[%emt 0:02:56]} 15. Nxf8 {[%emt 0:02:02]} Bxf8 {[%emt 0:00:48]} 16. Qb3 {[%emt 0:06:20]} Kg7 {[%emt 0:03:04]} 17. a4 {[%emt 0:04:35]} a5 {[%emt 0:03:48]} 18. bxa5 {[%emt 0:08:46]} Nxc5 {[%emt 0:01:01]} 19. Qc2 {[%emt 0:01:41]} Ra8 {[%emt 0:02:15]} 20. Ne2 {[%emt 0:02:38]} Rxa5 {[%emt 0:03:21]} 21. Bc3 {[%emt 0:09:30]} Ra8 {[%emt 0:00:42]} 22. a5 {[%emt 0:02:53]} Bd6 {[%emt 0:06:39]} 23. Rfd1 {[%emt 0:00:40]} Bc7 {[%emt 0:03:32]} 24. Bb4 {[%emt 0:08:02]} Nce4 {[%emt 0:03:28]} 25. Nc3 {[%emt 0:01:33]} c5 {[%emt 0:08:06]} 26. Nxe4 {[%emt 0:03:53]} Nxe4 {[%emt 0:00:21]} 27. Be1 {[%emt 0:01:37]} Nd6 {[%emt 0:10:25]} 28. Bd5 {[%emt 0:01:44]} Nb5 {[%emt 0:09:14]} 29. Qa4 {[%emt 0:01:19]} Bd7 {[%emt 0:03:37]} 30. Bc4 {[%emt 0:07:29]} Nd6 {[%emt 0:02:28]} 31. Qc2 {[%emt 0:00:45]} Nxc4 {[%emt 0:01:18]} 32. Qxc4 {[%emt 0:01:52]} Qe7 {[%emt 0:00:24]} 33. Qb3 {[%emt 0:05:07]} Bc6 {[%emt 0:01:03]} 34. Qc4 {[%emt 0:05:50]} Qg5 {[%emt 0:01:13]} 35. g3 {[%emt 0:01:01]} Qe7 {[%emt 0:00:40]} 36. Bc3 {[%emt 0:03:28]} Kh7 {[%emt 0:02:58]} 37. Qa2 {[%emt 0:04:25]} f4 {[%emt 0:00:51]} 38. exf4 {[%emt 0:01:18]} exf4 {[%emt 0:00:10]} 39. Re1 {[%emt 0:00:10]} Qf8 {[%emt 0:01:53]} 40. Qe2 {[%emt 0:00:00]} Re8 {[%emt 0:00:00]} 41. Qf1 {[%emt 0:01:56]} Ra8 {[%emt 0:02:06]} 42. Re6 {[%emt 0:03:08]} Bd8 {[%emt 0:01:22]} 43. Qd3 {[%emt 0:01:19]} Qf7 {[%emt 0:00:29]} 44. Rae1 {[%emt 0:00:55]} fxg3 {[%emt 0:00:59]} 45. hxg3 {[%emt 0:00:23]} Bg5 {[%emt 0:04:02]} 46. Qc4 {[%emt 0:03:52]} Rf8 {[%emt 0:01:28]} 47. Qxc5 {[%emt 0:02:16]} Qf3 {[%emt 0:00:57]} 48. Rxc6 {[%emt 0:05:17]} bxc6 {[%emt 0:00:59]} 49. Qd4 {[%emt 0:00:58]} Bf6 {[%emt 0:02:49]} 50. Qd7+ {[%emt 0:00:30]} Kg8 {[%emt 0:01:00]} 51. Bxf6 {[%emt 0:02:44]} Qxf6 {[%emt 0:00:16]} 52. Qe6+ {[%emt 0:00:45]} Qf7 {[%emt 0:00:51]} 53. Qxf7+ {[%emt 0:00:53]} Kxf7 {[%emt 0:00:27]} 54. Re4 {[%emt 0:01:50]} Ra8 {[%emt 0:00:24]} 55. Ra4 {[%emt 0:00:46]} Ke6 {[%emt 0:00:11]} 56. a6 {[%emt 0:00:53]} Kd7 {[%emt 0:00:08]} 57. a7 {[%emt 0:03:41]} Kc7 {[%emt 0:00:21]} 58. Rh4 {[%emt 0:00:52]} h5 {[%emt 0:00:17]} 59. g4 {[%emt 0:00:54]} 1/2-1/2

[Event "European School-ch 2019"]
[Site "Mamaia"]
[Date "2019.06.05"]
[Round "6.44"]
[White "Sida, Flavia-Maria"]
[Black "Shatil, Or"]
[Result "1/2-1/2"]
[ECO "A50"]
[WhiteElo "1219"]
[BlackElo "1199"]
[Annotator "NA RC"]
[PlyCount "79"]
[EventDate "2019.05.31"]
[EventType "swiss"]
[EventCountry "ROU"]
[SourceTitle "playchess.com"]
[Source "ChessBase"]
[SourceQuality "1"]
[TimeControl "40/5400+30:1800+30"]

1. d4 {[%emt 0:00:00]} Nf6 {[%emt 0:00:00]} 2. c4 {[%emt 0:00:00]} g6 {[%emt 0:00:00]} 3. Bg5 {[%emt 0:00:23]} Ne4 {[%emt 0:00:28]} 4. Bf4 {[%emt 0:00:18]} Bg7 {[%emt 0:00:51]} 5. f3 {[%emt 0:00:58]} Nf6 {[%emt 0:02:35]} 6. e4 {[%emt 0:01:03]} c5 {[%emt 0:01:24]} 7. d5 {[%emt 0:09:25]} d6 {[%emt 0:08:58]} 8. Nc3 {[%emt 0:04:35]} O-O {[%emt 0:04:32]} 9. Bd3 {[%emt 0:03:27]} Nbd7 {[%emt 0:03:09]} 10. Nge2 {[%emt 0:01:58]} Nh5 {[%emt 0:01:57]} 11. Be3 {[%emt 0:04:24]} Ne5 {[%emt 0:01:37]} 12. h3 {[%emt 0:09:15]} Nxd3+ {[%emt 0:07:15]} 13. Qxd3 {[%emt 0:00:30]} f5 {[%emt 0:07:13]} 14. exf5 {[%emt 0:03:32]} Bxf5 {[%emt 0:01:48]} 15. Qd2 {[%emt 0:00:42]} Bd7 {[%emt 0:07:22]} 16. g4 {[%emt 0:06:49]} Nf6 {[%emt 0:00:57]} 17. Bh6 {[%emt 0:06:29]} e6 {[%emt 0:06:12]} 18. Bxg7 {[%emt 0:01:32]} Kxg7 {[%emt 0:02:14]} 19. h4 {[%emt 0:00:50]} exd5 {[%emt 0:04:34]} 20. cxd5 {[%emt 0:00:17]} Qe7 {[%emt 0:02:36]} 21. O-O-O {[%emt 0:01:21]} Rae8 {[%emt 0:01:34]} 22. h5 {[%emt 0:06:41]} Qe3 {[%emt 0:03:16]} 23. h6+ {[%emt 0:01:06]} Kh8 {[%emt 0:01:12]} 24. Rhf1 {[%emt 0:11:46]} Nxd5 {[%emt 0:08:38]} 25. Nxd5 {[%emt 0:06:18]} Qxe2 {[%emt 0:00:41]} 26. Qc3+ {[%emt 0:00:48]} Qe5 {[%emt 0:00:25]} 27. Qxe5+ {[%emt 0:01:16]} Rxe5 {[%emt 0:01:36]} 28. f4 {[%emt 0:02:12]} Re4 {[%emt 0:02:01]} 29. g5 {[%emt 0:06:24]} Rc4+ {[%emt 0:01:16]} 30. Nc3 {[%emt 0:00:57]} Rcxf4 {[%emt 0:05:20]} 31. Rxf4 {[%emt 0:00:21]} Rxf4 {[%emt 0:00:23]} 32. Rxd6 {[%emt 0:00:08]} Rd4 {[%emt 0:02:17]} 33. Rf6 {[%emt 0:00:36]} Kg8 {[%emt 0:00:26]} 34. Kc2 {[%emt 0:00:46]} Bf5+ {[%emt 0:00:41]} 35. Kb3 {[%emt 0:00:21]} Rb4+ {[%emt 0:01:43]} 36. Ka3 {[%emt 0:00:13]} Rb6 {[%emt 0:03:09]} 37. Rxb6 {[%emt 0:00:15]} axb6 {[%emt 0:00:07]} 38. Nd5 {[%emt 0:00:09]} b5 {[%emt 0:01:10]} 39. Nf6+ {[%emt 0:00:07]} Kh8 {[%emt 0:00:37]} 40. b3 {[%emt 0:00:00]} 1/2-1/2

[Event "European School-ch 2019"]
[Site "Mamaia"]
[Date "2019.06.05"]
[Round "6.45"]
[White "Arora, Tashika"]
[Black "Zhapova, Yana"]
[Result "0-1"]
[ECO "D02"]
[WhiteElo "1471"]
[BlackElo "1804"]
[Annotator "NA RC"]
[PlyCount "140"]
[EventDate "2019.05.31"]
[EventType "swiss"]
[EventCountry "ROU"]
[SourceTitle "playchess.com"]
[Source "ChessBase"]
[SourceQuality "1"]
[TimeControl "40/5400+30:1800+30"]

1. d4 {[%emt 0:00:00]} d5 {[%emt 0:00:00]} 2. Nf3 {[%emt 0:00:00]} Nf6 {[%emt 0:00:15]} 3. Bf4 {[%emt 0:00:00]} c5 {[%emt 0:02:24]} 4. e3 {[%emt 0:00:02]} cxd4 {[%emt 0:02:44]} 5. exd4 {[%emt 0:03:55]} Nc6 {[%emt 0:00:23]} 6. Be2 {[%emt 0:01:34]} Bg4 {[%emt 0:01:34]} 7. c3 {[%emt 0:04:40]} e6 {[%emt 0:02:31]} 8. O-O {[%emt 0:01:22] B05: Alekhine's Defence: 4 Nf3 Bg4} Bd6 {[%emt 0:03:07]} (8... Bxf3 9. Bxf3 Bd6 10. Bxd6 Qxd6 11. Nd2 O-O 12. g3 b5 13. a3 a5 14. Nb3 {½-½ (39) Rozentalis,E (2605)-Wojtaszek,R (2622) Ermioni Argolidas 2006}) 9. Ne5 {[%emt 0:03:06]} Bxe2 {[%emt 0:01:58]} 10. Qxe2 {[%emt 0:00:11]} O-O {[%emt 0:00:34]} 11. Nxc6 $146 {[%emt 0:03:37]} ({Predecessor:} 11. Nd2 Qc7 12. Bg3 Rac8 13. f4 Ne7 14. Bh4 Ne8 15. Rae1 Ng6 {1-0 (35) Pohl,A (1572)-Breuer,L (1709) Gelsenkirchen 2018}) 11... bxc6 {[%emt 0:00:13]} 12. Bxd6 {[%emt 0:01:12]} Qxd6 {[%emt 0:00:11]} 13. Nd2 {[%emt 0:02:08]} c5 {[%emt 0:04:08]} 14. dxc5 Qxc5 {[%emt 0:00:09]} 15. Nb3 {[%emt 0:05:55]} Qb6 {[%emt 0:02:32]} 16. Rac1 {[%emt 0:02:27]} Rac8 {[%emt 0:02:32]} 17. Rfd1 {[%emt 0:05:13]} Ne4 {[%emt 0:01:58]} 18. Rd4 {[%emt 0:04:43]} Nd6 {[%emt 0:08:32]} 19. Rb4 {[%emt 0:05:05]} Qd8 {[%emt 0:03:59]} 20. Nd2 {[%emt 0:07:06]} Qg5 {[%emt 0:08:54]} 21. Rg4 {[%emt 0:02:28]} Qf6 {[%emt 0:00:21]} 22. Rb4 {[%emt 0:06:34]} Rfd8 {[%emt 0:00:43]} 23. Rd1 {[%emt 0:01:34]} h6 {[%emt 0:02:02]} 24. Qg4 {[%emt 0:05:21]} Nf5 {[%emt 0:03:15]} 25. Nb3 {[%emt 0:04:28]} e5 {[%emt 0:05:18]} 26. h3 {[%emt 0:04:06]} g6 {[%emt 0:10:00]} 27. Qf3 {[%emt 0:01:44]} Qe6 {[%emt 0:00:57]} 28. Qe2 {[%emt 0:02:35]} Ng7 {[%emt 0:09:53]} 29. Re1 {[%emt 0:01:20]} Re8 {[%emt 0:00:21]} 30. Rb7 {[%emt 0:02:13]} a6 {[%emt 0:01:48]} 31. Rb4 {[%emt 0:01:22]} Rc6 {[%emt 0:04:31]} 32. Na5 {[%emt 0:01:49]} Rc5 {[%emt 0:01:21]} 33. Nb3 {[%emt 0:01:15]} Rc6 {[%emt 0:00:35]} 34. Na5 {[%emt 0:01:09]} Rb6 {[%emt 0:01:21]} 35. Rxb6 {[%emt 0:01:07]} Qxb6 {[%emt 0:00:04]} 36. b4 {[%emt 0:00:44]} Nh5 {[%emt 0:00:59]} 37. Qe3 {[%emt 0:01:23]} Qc7 {[%emt 0:01:37]} 38. g3 {[%emt 0:01:03]} Kg7 {[%emt 0:00:43]} 39. Kf1 {[%emt 0:00:50]} Nf6 {[%emt 0:00:31]} 40. Nb3 {[%emt 0:00:00]} Qc4+ {[%emt 0:00:00]} 41. Kg2 {[%emt 0:01:43]} d4 {[%emt 0:07:59]} 42. cxd4 {[%emt 0:01:55]} exd4 {[%emt 0:00:05] Pin} 43. Qd2 {[%emt 0:00:49]} Qd5+ {[%emt 0:00:42]} 44. Kg1 {[%emt 0:00:40]} Rxe1+ {[%emt 0:01:11]} 45. Qxe1 {[%emt 0:00:13]} Ne4 {[%emt 0:00:16]} 46. Qa1 {[%emt 0:00:56]} Nc3 {[%emt 0:00:10]} 47. Qb2 {[%emt 0:03:01]} Qc4 {[%emt 0:03:54]} 48. Nc1 {[%emt 0:02:12] [#]} d3 $1 {[%emt 0:06:11]} 49. Qd2 $2 {[%emt 0:02:52]} (49. Nb3 $17 {is a better chance.}) 49... Ne4 {[%emt 0:01:21]} 50. Qd1 {[%emt 0:07:53]} d2 {[%emt 0:01:08]} 51. Nb3 {[%emt 0:01:36]} Qxb4 {[%emt 0:01:14]} 52. Kg2 {[%emt 0:03:01]} (52. Qe2 $142) 52... Qb6 {[%emt 0:01:34]} 53. Qe2 {[%emt 0:03:01] [#]} d1=Q $19 {[%emt 0:00:25]} 54. Qxe4 {[%emt 0:03:26]} Qe6 {[%emt 0:00:37]} 55. Qxe6 {[%emt 0:00:28]} fxe6 {[%emt 0:00:05]} 56. h4 {[%emt 0:00:15]} e5 {[%emt 0:00:18]} 57. f3 {[%emt 0:00:40]} Qc2+ {[%emt 0:00:14]} 58. Kf1 {[%emt 0:00:29]} Qxa2 {[%emt 0:00:09]} 59. Nc5 {[%emt 0:00:09]} Qc4+ {[%emt 0:00:04]} 60. Ke1 {[%emt 0:00:10]} Qxc5 {[%emt 0:00:04]} 61. Ke2 {[%emt 0:00:24]} Qc2+ {[%emt 0:00:07]} 62. Ke3 {[%emt 0:00:08]} a5 {[%emt 0:00:12]} 63. f4 {[%emt 0:00:09]} exf4+ {[%emt 0:00:09]} 64. Kxf4 {[%emt 0:00:18]} a4 {[%emt 0:00:11]} 65. Ke5 {[%emt 0:00:07]} a3 {[%emt 0:00:05]} 66. Kd5 {[%emt 0:00:09]} a2 {[%emt 0:00:07]} 67. Kd6 {[%emt 0:00:04]} a1=Q {[%emt 0:00:08]} 68. Kd5 {[%emt 0:00:07]} Qad1+ {[%emt 0:00:20]} 69. Ke5 {[%emt 0:00:08]} Qce2+ {[%emt 0:00:06]} 70. Kf4 {[%emt 0:00:04]} Qdf1# {[%emt 0:00:06]} 0-1